bitfinex-derivatives/quotes_SOLF0:USTF0_20251222
["timestamp","ask_amount","ask_price","bid_price","bid_amount"]
[1766365182005,120.15929304,126.48,126.38,3.22]
[1766365182300,2.30899304,126.46,126.38,3.22]
[1766365182505,0.06017373,126.43,126.38,3.22]
[1766365183497,0.06017373,126.43,126.37,3.36253925]
[1766365183498,2.36916677,126.43,126.37,3.22253925]
[1766365184007,0.06017373,126.43,126.39,0.05039266]
[1766365184598,0.00017373,126.43,126.39,3.27039266]
[1766365184903,46.64,126.49,126.39,3.27039266]
[1766365185099,120.11939304,126.52,126.4,3.22]
[1766365185302,110.7045,126.51,126.4,3.22]
[1766365185803,0.05425592,126.47,126.44,0.05808998]
[1766365187017,0.05425592,126.47,126.39,3.22]
[1766365187216,8.88469994,126.48,126.39,3.22]
[1766365188112,0.06054915,126.45,126.42,0.05886241]
[1766365194825,2.36954219,126.45,126.38,3.22]
[1766365195025,2.36954219,126.45,126.37,0.00253925]
[1766365195228,2.30899304,126.43,126.37,0.00253925]
[1766365195528,2.30899304,126.44,126.37,0.00253925]
[1766365195926,0.05536951,126.42,126.39,0.05250187]
[1766365196113,0.05536951,126.42,126.37,0.00253925]
[1766365196519,2.36436255,126.42,126.37,0.00253925]
[1766365196924,2.30899304,126.38,126.25,3.22]
[1766365197127,0.05011294,126.33,126.25,3.22]
[1766365197326,2.30899304,126.32,126.25,3.22]
[1766365197934,46.66,126.35,126.25,3.22]
[1766365198131,0.05629555,126.31,126.29,0.06082226]
[1766365198321,0.05629555,126.31,126.25,3.22]
[1766365199329,0.05629555,126.31,126.27,0.05173693]
[1766365201632,0.05629555,126.31,126.22,3.22]
[1766365201633,110.93469555,126.31,126.22,3.22]
[1766365201838,53.8088,126.3,126.22,3.22]
[1766365202027,6.46140553,126.32,126.22,3.22]
[1766365202431,12.85379024,126.32,126.22,3.22]
[1766365202624,12.85379024,126.32,126.2,110.9706]
[1766365202625,0.00353505,126.28,126.26,3.28085638]
[1766365202930,12.85458811,126.35,126.26,3.22]
[1766365203134,12.85458811,126.35,126.21,110.9622]
[1766365203337,117.34490553,126.31,126.2,3.22]
[1766365203537,110.8978,126.29,126.2,3.22]
[1766365203841,0.05893532,126.26,126.2,3.22]
[1766365204225,6.46140553,126.31,126.22,3.22]
[1766365204427,53.8273,126.32,126.22,3.22]
[1766365204629,117.31730553,126.34,126.22,3.22]
[1766365204930,53.01059415,126.33,126.22,3.22]
[1766365205133,46.7,126.33,126.23,3.22]
[1766365205329,6.46140553,126.35,126.27,3.43893343]
[1766365205540,117.13119135,126.38,126.28,3.38]
[1766365205736,6.31026978,126.37,126.28,3.38]
[1766365205942,6.46140553,126.37,126.28,3.38]
[1766365206442,0.05283556,126.34,126.31,0.05361457]
[1766365206841,157.506,126.4,126.31,3.43361457]
[1766365206842,6.46140553,126.4,126.31,3.43361457]
[1766365207040,53.16140553,126.4,126.31,3.38]
[1766365207639,60.28450553,126.4,126.31,3.38]
[1766365207837,0.05715118,126.37,126.34,0.05368346]
[1766365208042,0.05715118,126.37,126.21,110.9573]
[1766365208043,110.8386,126.36,126.28,3.38]
[1766365208339,46.7,126.35,126.28,3.38]
[1766365208543,46.7,126.35,126.25,3.38]
[1766365208744,164.6683,126.35,126.25,3.38]
[1766365208935,164.6683,126.35,126.22,118.0811]
[1766365208936,6.46140553,126.3,126.19,3.38]
[1766365209241,110.8982,126.29,126.19,3.38]
[1766365209446,118.0276,126.29,126.19,3.38]
[1766365209944,118.0365,126.28,126.19,3.38]
[1766365210132,6.46140553,126.36,126.19,3.38]
[1766365210133,6.46140553,126.33,126.21,3.38]
[1766365210330,0.0537861,126.28,126.26,0.05775674]
[1766365210536,0.05983421,126.28,126.26,0.05775674]
[1766365211339,46.7,126.33,126.26,0.05775674]
[1766365212237,0.05319096,126.31,126.26,3.43775674]
[1766365212443,117.27160553,126.39,126.26,3.38]
[1766365212646,163.99160553,126.39,126.26,3.38]
[1766365212851,117.24540553,126.42,126.29,3.38]
[1766365213150,117.24540553,126.42,126.3,3.38]
[1766365213151,157.513,126.41,126.3,3.38]
[1766365213656,0.05218273,126.37,126.34,0.05284352]
[1766365213840,110.7794,126.43,126.34,3.43284352]
[1766365214146,117.9031,126.42,126.34,3.38]
[1766365214736,0.05586808,126.39,126.37,0.002305]
[1766365214937,0.05586808,126.39,126.31,3.38]
[1766365215239,7.1225,126.41,126.31,3.38]
[1766365215941,0.05534176,126.37,126.31,3.38]
[1766365217043,7.1212,126.43,126.33,3.38]
[1766365217232,7.1212,126.43,126.34,10.91367561]
[1766365217438,117.8932,126.43,126.35,7.53367561]
[1766365217648,117.8932,126.43,126.36,7.53367561]
[1766365217842,117.8932,126.43,126.37,7.53367561]
[1766365218043,0.0605548,126.41,126.38,9.572e-05]
[1766365218241,0.0605548,126.41,126.34,3.38]
[1766365218444,110.8007,126.4,126.31,3.38]
[1766365218743,110.8539548,126.41,126.31,3.38]
[1766365218744,110.7934,126.41,126.31,3.38]
[1766365218945,157.4744,126.43,126.35,0.05791243]
[1766365219145,46.7,126.43,126.34,3.38]
[1766365219941,0.05079477,126.4,126.37,0.05413368]
[1766365220948,0.00079477,126.4,126.37,0.05413368]
[1766365221350,7.1203,126.45,126.37,3.43413368]
[1766365221544,7.1203,126.45,126.37,3.38]
[1766365221750,117.885,126.44,126.37,3.38]
[1766365222050,7.1209,126.44,126.37,3.38]
[1766365222441,0.06013233,126.42,126.39,0.05068313]
[1766365223253,0.06013233,126.42,126.34,50.14]
[1766365223254,0.06013233,126.42,126.34,3.38]
[1766365223554,110.7897,126.41,126.32,50.14]
[1766365223854,110.7897,126.41,126.33,3.38]
[1766365224252,0.05662595,126.38,126.36,0.05694767]
[1766365227159,46.7,126.43,126.36,0.05694767]
[1766365227955,157.4815,126.42,126.32,50.25]
[1766365228551,110.8001,126.4,126.32,50.25]
[1766365229056,0.06001794,126.37,126.35,0.05043762]
[1766365229663,46.7,126.43,126.35,3.54043762]
[1766365229855,46.7,126.43,126.35,3.49]
[1766365230050,46.7,126.43,126.36,7.37794537]
[1766365230258,46.7,126.43,126.37,7.37794537]
[1766365230555,46.7,126.43,126.39,0.05324879]
[1766365230760,0.0559315,126.41,126.35,3.49]
[1766365231855,0.0559315,126.41,126.37,0.05938844]
[1766365235559,46.7,126.43,126.37,3.46938844]
[1766365237371,11.0896053,126.46,126.37,3.46938844]
[1766365237672,0.05438466,126.43,126.4,0.05275981]
[1766365239866,110.7211,126.49,126.4,3.46275981]
[1766365240070,110.7211,126.49,126.4,3.41]
[1766365240662,0.05987982,126.46,126.43,0.05572845]
[1766365241569,11.0872053,126.5,126.43,0.05572845]
[1766365241769,3.9700053,126.5,126.43,0.05572845]
[1766365242168,3.9700053,126.5,126.43,3.46572845]
[1766365242567,0.06068106,126.48,126.43,3.46572845]
[1766365243475,0.06068106,126.48,126.43,0.05572845]
[1766365243773,3.9700053,126.47,126.38,50.15]
[1766365243977,11.0890053,126.47,126.39,3.41]
[1766365244572,0.05111207,126.44,126.42,0.05411056]
[1766365244766,3.9700053,126.47,126.42,0.05411056]
[1766365245874,0.0511238,126.46,126.42,0.05411056]
[1766365246971,0.0511238,126.46,126.43,7.70271425]
[1766365247271,0.0511238,126.46,126.44,7.70271425]
[1766365247474,0.0511238,126.46,126.42,0.05411056]
[1766365247880,3.9700053,126.43,126.36,3.41]
[1766365248078,0.46,126.47,126.36,3.41]
[1766365248275,11.5491053,126.47,126.38,3.41]
[1766365248580,3.9700053,126.47,126.38,3.41]
[1766365248775,7.1179,126.49,126.4,3.41]
[1766365248980,0.05756071,126.46,126.43,0.0530608]
[1766365250984,4.4300053,126.5,126.43,3.4630608]
[1766365251489,46.68,126.51,126.43,3.4630608]
[1766365251674,0.52,126.52,126.43,3.41]
[1766365251876,0.06003911,126.49,126.46,0.05784394]
[1766365252073,0.58,126.55,126.46,3.46784394]
[1766365252372,0.58,126.58,126.48,3.41]
[1766365253078,0.0607258,126.54,126.52,0.00296948]
[1766365253286,0.5907258,126.54,126.44,3.41]
[1766365253581,0.53,126.54,126.44,3.41]
[1766365254188,0.00390301,126.5,126.48,0.05292564]
[1766365254388,0.53,126.54,126.48,0.05292564]
[1766365255389,0.63710656,126.52,126.48,0.00292564]
[1766365255585,0.63710656,126.52,126.43,3.41]
[1766365255776,0.58,126.52,126.43,3.41]
[1766365256185,6.18008632,126.52,126.43,3.41]
[1766365256386,4.5000053,126.55,126.44,3.41]
[1766365256690,0.05608288,126.51,126.48,0.0574827]
[1766365259382,0.52608288,126.51,126.43,3.41]
[1766365259588,3.9700053,126.52,126.43,3.41]
[1766365260283,0.00483189,126.49,126.46,3.46554189]
[1766365260486,0.00483189,126.49,126.42,157.4955]
[1766365260487,0.00483189,126.49,126.43,3.41]
[1766365261086,4.4900053,126.55,126.44,3.41]
[1766365261286,10.0574452,126.55,126.44,3.41]
[1766365261801,11.6043053,126.55,126.45,3.41]
[1766365261996,0.05382862,126.51,126.49,0.05053104]
[1766365263091,4.4900053,126.55,126.49,0.05053104]
[1766365263681,58.3128053,126.58,126.49,3.46053104]
[1766365263880,58.3128053,126.58,126.49,3.41]
[1766365264084,0.05607455,126.55,126.52,0.05245343]
[1766365265291,0.05607455,126.55,126.52,0.00245343]
[1766365265593,0.52,126.54,126.46,3.37]
[1766365266294,7.6351,126.54,126.46,3.37]
[1766365266597,0.05596649,126.51,126.49,0.0543342]
[1766365267000,3.9700053,126.55,126.49,3.4243342]
[1766365267192,4.5400053,126.58,126.49,3.4243342]
[1766365267509,0.57,126.57,126.49,3.37]
[1766365268101,0.05584955,126.54,126.52,0.05792395]
[1766365269887,3.9700053,126.58,126.52,0.05792395]
[1766365270090,0.63,126.59,126.52,3.42792395]
[1766365270292,7.1115,126.6,126.52,3.42792395]
[1766365270489,7.1115,126.6,126.52,3.37]
[1766365270689,7.7406,126.62,126.52,3.37]
[1766365270888,0.04993296,126.58,126.56,0.05444486]
[1766365271085,0.63,126.62,126.56,0.05444486]
[1766365272000,0.05207362,126.6,126.56,0.05444486]
[1766365272201,9.53340568,126.64,126.56,0.05444486]
[1766365272202,0.68,126.65,126.56,3.42444486]
[1766365272503,0.68,126.65,126.56,3.37]
[1766365273096,7.789,126.65,126.56,3.37]
[1766365273302,0.0471214,126.62,126.56,3.37]
[1766365273503,111.2959,126.61,126.53,3.37]
[1766365273806,7.7919,126.6,126.53,3.37]
[1766365274207,7.1119,126.6,126.53,3.37]
[1766365274507,0.05631943,126.58,126.55,0.05756916]
[1766365275227,7.1104,126.62,126.55,3.42756916]
[1766365275399,0.68,126.63,126.55,3.42756916]
[1766365275600,0.68,126.63,126.55,3.37]
[1766365276195,7.1092,126.64,126.58,0.05661372]
[1766365276404,0.04220768,126.6,126.58,0.05661372]
[1766365277305,0.73,126.64,126.58,0.05661372]
[1766365278704,7.8395,126.64,126.58,0.05661372]
[1766365279505,3.9700053,126.65,126.58,3.42661372]
[1766365280308,0.77,126.63,126.58,0.05661372]
[1766365281507,7.8801,126.63,126.58,0.05661372]
[1766365281702,0.77,126.63,126.58,0.05661372]
[1766365283401,0.77,126.66,126.58,3.42661372]
[1766365283602,0.77,126.66,126.61,0.05029591]
[1766365284201,46.64,126.67,126.61,0.05029591]
[1766365286011,46.64,126.67,126.61,3.42029591]
[1766365286403,0.77,126.68,126.61,3.42029591]
[1766365286711,0.77,126.68,126.63,0.0514517]
[1766365287313,11.8456053,126.71,126.63,3.4614517]
[1766365287499,11.8456053,126.71,126.66,0.0504416]
[1766365287703,4.7400053,126.71,126.66,0.0504416]
[1766365287899,4.7400053,126.71,126.66,0.0004416]
[1766365287900,0.77,126.7,126.66,0.0004416]
[1766365288813,3.3,126.8,126.7,110.5345]
[1766365288998,3.3,126.8,126.74,0.05092007]
[1766365289406,3.3,126.79,126.74,0.05092007]
[1766365289715,110.4516,126.8,126.71,1.37]
[1766365289716,3.3,126.76,126.71,1.37]
[1766365290012,3.3,126.74,126.65,3.41]
[1766365290211,3.3,126.73,126.65,3.41]
[1766365290431,3.3,126.71,126.65,3.41]
[1766365290708,0.05092007,126.69,126.67,0.00433319]
[1766365290914,0.05092007,126.69,126.65,3.41]
[1766365291119,0.05092007,126.69,126.61,46.66]
[1766365291326,3.3,126.68,126.54,110.6686]
[1766365291516,114.5155053,126.69,126.56,157.31]
[1766365291517,3.3,126.67,126.56,157.31]
[1766365292018,3.3,126.67,126.6,0.05420753]
[1766365293008,0.04438246,126.65,126.6,0.05420753]
[1766365296914,3.48438246,126.65,126.6,0.00420753]
[1766365297119,3.44,126.64,126.54,7.1147]
[1766365297413,3.44,126.63,126.51,110.6954]
[1766365297614,3.44,126.62,126.52,53.7558]
[1766365298009,0.05016842,126.58,126.56,0.05570814]
[1766365298318,0.00016842,126.58,126.56,0.05570814]
[1766365303112,0.00016842,126.58,126.52,64.64]
[1766365303318,0.00016842,126.58,126.52,46.64]
[1766365303520,3.44016842,126.58,126.49,18.0]
[1766365303714,3.44,126.58,126.49,46.66]
[1766365304117,0.05019808,126.55,126.52,0.05031208]
[1766365305228,0.00019808,126.55,126.52,0.05031208]
[1766365305429,3.44,126.61,126.52,110.74281208]
[1766365305728,3.44,126.61,126.53,110.6838]
[1766365306024,3.44,126.61,126.54,46.66]
[1766365306412,0.05410005,126.59,126.56,0.05333971]
[1766365307029,0.05410005,126.59,126.57,7.3695189]
[1766365307214,0.05410005,126.59,126.58,7.3695189]
[1766365308217,3.44,126.64,126.58,7.3695189]
[1766365308415,3.44,126.64,126.59,7.3695189]
[1766365308622,3.44,126.64,126.6,7.3695189]
[1766365308827,3.44,126.64,126.54,157.3316]
[1766365309213,3.44,126.64,126.58,0.06040908]
[1766365310220,3.44,126.64,126.58,0.00040908]
[1766365311414,3.49954832,126.62,126.58,0.00040908]
[1766365311619,3.49954832,126.62,126.54,53.7746]
[1766365311924,3.44,126.62,126.54,46.66]
[1766365312139,3.44,126.62,126.51,110.6971]
[1766365312140,3.44,126.6,126.48,110.7203]
[1766365312430,3.44,126.6,126.49,46.66]
[1766365312629,0.05297283,126.56,126.53,0.05194811]
[1766365314027,3.49297283,126.56,126.45,141.46]
[1766365314224,3.44,126.56,126.45,141.46]
[1766365314820,0.06005327,126.52,126.49,0.055188]
[1766365316930,3.44,126.59,126.49,0.055188]
[1766365317129,3.44,126.59,126.49,18.0]
[1766365317130,3.44,126.58,126.49,18.0]
[1766365317828,0.05528857,126.55,126.52,0.06021076]
[1766365318332,3.44,126.58,126.52,0.06021076]
[1766365319326,0.05172575,126.56,126.52,0.06021076]
[1766365320435,3.44,126.61,126.52,175.42821076]
[1766365320625,3.44,126.64,126.54,110.675]
[1766365320933,3.44,126.64,126.54,128.675]
[1766365321119,3.44,126.62,126.54,18.0]
[1766365321324,3.44,126.62,126.49,110.713]
[1766365321325,3.44,126.61,126.52,46.68]
[1766365321521,117.00705209,126.65,126.55,0.05308384]
[1766365321732,3.44,126.64,126.55,18.0]
[1766365322334,3.44,126.64,126.55,25.1137]
[1766365322732,0.05983224,126.61,126.58,0.05942961]
[1766365323528,3.44,126.65,126.58,18.05942961]
[1766365323833,3.44,126.65,126.56,25.1134]
[1766365324038,3.44,126.65,126.54,128.6733]
[1766365324334,3.44,126.63,126.53,64.68]
[1766365324524,3.44,126.63,126.58,0.05186989]
[1766365326234,3.41,126.67,126.58,0.05186989]
[1766365326440,3.41,126.67,126.61,0.05718281]
[1766365329438,3.41,126.67,126.56,46.66]
[1766365330635,0.05576556,126.63,126.6,0.05369688]
[1766365331334,10.5172,126.68,126.6,0.05369688]
[1766365331542,3.41,126.68,126.57,110.6488]
[1766365332334,3.41,126.68,126.59,7.1117]
[1766365332535,3.41,126.68,126.61,0.05782642]
[1766365333341,3.41,126.67,126.61,0.05782642]
[1766365334634,10.5184,126.66,126.61,0.05782642]
[1766365335643,3.41,126.64,126.55,46.66]
[1766365336433,0.05406666,126.61,126.58,0.05746732]
[1766365338947,3.41,126.6,126.53,46.66]
[1766365339148,10.52,126.63,126.53,46.66]
[1766365339348,3.41,126.63,126.54,7.1144]
[1766365339746,3.41,126.63,126.57,0.05231851]
[1766365339951,0.05731031,126.6,126.57,0.05231851]
[1766365340962,157.1935,126.66,126.57,0.05231851]
[1766365340963,3.41,126.66,126.57,0.05231851]
[1766365341251,3.41,126.66,126.56,110.6537]
[1766365341642,3.41,126.65,126.55,128.6644]
[1766365341842,0.05771077,126.61,126.59,0.05799018]
[1766365342247,3.41,126.65,126.59,0.05799018]
[1766365342449,10.5173,126.68,126.59,0.05799018]
[1766365342662,3.41,126.67,126.56,157.3158]
[1766365342862,3.41,126.67,126.56,46.66]
[1766365343260,3.41,126.67,126.6,0.05610079]
[1766365343658,3.41,126.66,126.6,0.05610079]
[1766365344567,3.41,126.66,126.6,18.05610079]
[1766365345668,3.41,126.69,126.6,0.05610079]
[1766365345967,3.41,126.69,126.63,0.05680758]
[1766365346664,3.41,126.69,126.58,46.66]
[1766365347460,0.05797625,126.65,126.62,0.05975413]
[1766365347756,3.41,126.69,126.62,0.05165559]
[1766365347958,3.41,126.69,126.6,110.6191]
[1766365348159,3.41,126.69,126.59,110.6295]
[1766365348870,3.41,126.69,126.63,0.05478468]
[1766365349259,3.41,126.72,126.63,0.05478468]
[1766365349468,3.41,126.72,126.66,0.05451201]
[1766365350666,3.41,126.72,126.67,7.1073]
[1766365350864,3.41,126.77,126.67,7.1073]
[1766365351275,3.41,126.77,126.68,110.5528]
[1766365351662,3.41,126.77,126.67,110.561]
[1766365352069,3.41,126.77,126.71,0.05107896]
[1766365353063,46.6,126.78,126.71,0.05107896]
[1766365354166,3.36,126.77,126.71,0.05107896]
[1766365357166,3.36,126.77,126.71,0.00107896]
[1766365357471,3.36,126.77,126.6,442.4734]
[1766365357472,3.49,126.71,126.62,46.64]
[1766365357970,3.49,126.71,126.6,110.6154]
[1766365357971,3.49,126.71,126.61,110.6105]
[1766365358376,0.05366268,126.67,126.65,0.05453651]
[1766365363380,0.05366268,126.67,126.65,0.00453651]
[1766365363767,0.05366268,126.67,126.6,25.1112]
[1766365363972,0.05366268,126.67,126.6,7.1112]
[1766365364671,0.05366268,126.67,126.62,0.0564021]
[1766365365671,0.00366268,126.67,126.62,7.1664021]
[1766365366479,0.00366268,126.67,126.62,0.0564021]
[1766365367468,3.49366268,126.67,126.62,0.0564021]
[1766365368978,3.49366268,126.67,126.56,7.1134]
[1766365369284,3.49,126.67,126.56,110.657]
[1766365369973,0.05149844,126.63,126.6,0.05253493]
[1766365370478,3.49,126.67,126.6,0.05253493]
[1766365370673,46.6,126.68,126.6,0.05253493]
[1766365370875,3.49,126.7,126.6,46.64]
[1766365371182,3.49,126.7,126.56,110.657]
[1766365371183,3.49,126.67,126.55,110.6616]
[1766365371372,3.49,126.67,126.56,110.6578]
[1766365371573,0.05811422,126.63,126.6,0.05548218]
[1766365374373,3.49,126.67,126.6,0.05548218]
[1766365374683,3.49,126.69,126.6,0.05548218]
[1766365374878,3.49,126.69,126.59,110.6279]
[1766365375187,3.49,126.68,126.58,7.1122]
[1766365375385,114.0142,126.72,126.62,0.0594312]
[1766365375573,3.49,126.76,126.66,110.61796889]
[1766365375787,3.49,126.79,126.7,0.05310007]
[1766365375987,3.49,126.79,126.7,110.5322]
[1766365376180,3.49,126.79,126.73,0.05495731]
[1766365377072,121.0517,126.79,126.73,0.05495731]
[1766365377270,3.49,126.77,126.66,46.64]
[1766365377481,3.49,126.77,126.66,157.2079]
[1766365378275,0.05942606,126.73,126.7,0.05064558]
[1766365380184,3.49,126.8,126.7,110.58634558]
[1766365380379,3.49,126.8,126.7,110.5357]
[1766365380578,3.49,126.8,126.71,157.1639]
[1766365380782,3.49,126.8,126.71,46.64]
[1766365380971,3.49,126.8,126.7,46.64]
[1766365381175,3.49,126.77,126.66,164.317]
[1766365381373,3.49,126.77,126.67,110.559]
[1766365382182,3.49,126.8,126.71,0.05982059]
[1766365382380,3.49,126.8,126.68,157.1914]
[1766365383487,3.49,126.8,126.73,0.0596095]
[1766365385685,10.5906,126.8,126.73,0.0596095]
[1766365385889,3.25,126.79,126.73,0.0596095]
[1766365388286,3.3096095,126.77,126.7,18.0]
[1766365388479,0.0596095,126.77,126.68,157.1728]
[1766365388692,3.25,126.78,126.68,157.1728]
[1766365388897,3.25,126.78,126.68,46.62]
[1766365389086,3.25,126.78,126.66,128.5693]
[1766365389283,3.25,126.78,126.71,0.05687048]
[1766365389487,3.25,126.75,126.63,110.5896]
[1766365389687,3.25,126.75,126.64,46.62]
[1766365390084,3.25,126.74,126.62,110.5988]
[1766365390294,3.25,126.72,126.58,110.633]
[1766365390493,0.05199003,126.67,126.65,0.05378291]
[1766365390693,0.05936776,126.67,126.65,0.05378291]
[1766365392394,0.05936776,126.67,126.65,0.00378291]
[1766365392597,0.05936776,126.67,126.6,7.1112]
[1766365393297,0.05936776,126.67,126.6,117.7338]
[1766365393795,0.05936776,126.67,126.62,0.05825333]
[1766365395001,0.05936776,126.67,126.62,7.16855333]
[1766365396408,0.05936776,126.67,126.62,0.05825333]
[1766365398404,3.30936776,126.67,126.62,0.05825333]
[1766365398997,3.25,126.66,126.58,46.62]
[1766365399802,3.94662124,126.67,126.58,53.7322]
[1766365400006,3.94662124,126.67,126.61,0.05571779]
[1766365400007,0.05698074,126.64,126.61,0.05571779]
[1766365401600,3.25,126.69,126.61,0.05571779]
[1766365401807,3.25,126.69,126.59,110.6287]
[1766365402006,3.25,126.69,126.6,110.6227]
[1766365402708,0.05648781,126.66,126.63,0.05320979]
[1766365403108,49.83,126.72,126.63,46.69320979]
[1766365403307,49.83,126.72,126.63,46.64]
[1766365403701,49.83,126.72,126.63,53.7494]
[1766365404006,141.4814289,126.77,126.66,0.05988118]
[1766365404007,3.25,126.75,126.66,0.05988118]
[1766365404213,3.25,126.75,126.65,110.5775]
[1766365404996,3.25,126.75,126.69,0.05581886]
[1766365405202,0.05036105,126.71,126.69,0.05581886]
[1766365405409,3.94662124,126.77,126.69,0.05581886]
[1766365405709,7.19662124,126.77,126.68,46.64]
[1766365406410,7.19662124,126.77,126.71,0.05395928]
[1766365406903,3.41,126.76,126.71,0.05395928]
[1766365408709,3.41,126.75,126.64,157.2057]
[1766365408909,3.41,126.75,126.64,46.62]
[1766365409117,3.41,126.74,126.64,53.729]
[1766365409409,3.41,126.72,126.64,46.62]
[1766365409599,0.05532724,126.69,126.67,0.05096502]
[1766365409797,0.05532724,126.69,126.67,0.00096502]
[1766365414922,3.41,126.72,126.67,0.00096502]
[1766365415418,3.38,126.74,126.67,0.00096502]
[1766365415615,3.38,126.73,126.62,110.601]
[1766365415813,3.38,126.73,126.65,46.62]
[1766365416014,0.05683285,126.69,126.66,0.05185532]
[1766365419443,10.489,126.65,126.54,7.1146]
[1766365419627,3.38,126.64,126.54,7.1146]
[1766365420332,3.38,126.64,126.55,117.7804]
[1766365420527,0.05693344,126.6,126.58,0.05096525]
[1766365421743,0.05693344,126.6,126.52,46.66]
[1766365422041,3.38,126.62,126.52,46.66]
[1766365422840,0.05145423,126.58,126.56,0.05262867]
[1766365425337,3.38,126.62,126.56,0.05262867]
[1766365425645,3.38,126.62,126.56,0.00262867]
[1766365426540,0.05783612,126.6,126.56,0.00262867]
[1766365428640,3.43783612,126.6,126.56,0.00262867]
[1766365431034,3.43783612,126.6,126.5,18.0]
[1766365431245,3.43783612,126.6,126.49,7.1373]
[1766365431246,3.38,126.6,126.49,53.7973]
[1766365431447,3.38,126.59,126.49,7.1373]
[1766365432038,3.38,126.58,126.49,7.1373]
[1766365432239,0.05053017,126.55,126.53,0.00072426]
[1766365433551,3.43053017,126.55,126.46,110.8182]
[1766365433846,3.38,126.55,126.46,157.4782]
[1766365434233,3.38,126.55,126.47,0.08]
[1766365434636,3.38,126.55,126.5,0.0535251]
[1766365434637,0.05926803,126.52,126.5,0.0535251]
[1766365435643,3.38,126.55,126.5,0.0535251]
[1766365435848,157.2369,126.61,126.5,0.0535251]
[1766365435849,3.38,126.58,126.5,0.0535251]
[1766365436147,3.38,126.58,126.49,0.08]
[1766365436544,3.38,126.58,126.47,0.08]
[1766365436845,0.05180171,126.54,126.51,0.05613175]
[1766365437046,0.05114037,126.54,126.51,0.05379614]
[1766365438641,3.38,126.59,126.51,0.08379614]
[1766365438839,3.38,126.59,126.51,110.7312]
[1766365439242,3.38,126.59,126.51,0.03]
[1766365439451,3.38,126.59,126.51,46.69]
[1766365439647,0.05934804,126.56,126.54,0.05661751]
[1766365439852,3.43934804,126.56,126.48,7.118]
[1766365440066,3.38,126.55,126.45,0.09]
[1766365440355,3.38,126.55,126.45,46.77]
[1766365440356,3.38,126.53,126.45,46.77]
[1766365440853,0.05218215,126.5,126.48,0.05215635]
[1766365442458,3.38,126.56,126.48,0.05215635]
[1766365442654,3.38,126.56,126.47,0.09]
[1766365443154,3.38,126.56,126.47,7.2085]
[1766365443358,3.38,126.56,126.45,46.77]
[1766365443552,0.05991248,126.52,126.45,46.77]
[1766365443747,0.05991248,126.52,126.49,0.05036071]
[1766365444548,3.38,126.56,126.49,0.08036071]
[1766365445656,0.05915526,126.54,126.49,7.19776071]
[1766365447857,3.38,126.59,126.5,7.1167]
[1766365448064,3.38,126.59,126.51,0.03]
[1766365448455,3.38,126.58,126.49,18.0]
[1766365448851,3.38,126.58,126.51,7.1163]
[1766365449056,3.38,126.6,126.52,0.08785296]
[1766365449260,3.38,126.6,126.55,0.05700891]
[1766365452758,3.38,126.62,126.55,0.05700891]
[1766365453061,46.64,126.64,126.57,0.05887677]
[1766365453062,50.02,126.64,126.57,0.05887677]
[1766365453457,3.38,126.63,126.57,0.05887677]
[1766365457353,3.38,126.62,126.52,7.1457]
[1766365457551,3.38,126.62,126.5,46.77]
[1766365458355,3.38,126.62,126.5,53.8868]
[1766365458553,0.05828535,126.57,126.55,0.05451174]
[1766365458754,0.05260944,126.57,126.55,0.05100238]
[1766365458970,0.05260944,126.57,126.55,0.00100238]
[1766365459761,3.38,126.64,126.55,0.00100238]
[1766365459963,3.38,126.64,126.54,7.2044]